Cogmind - Beta 15 @@@ ROGUE MODE // 2025.09.15 @ 01:41:09 Player: jydah Result: Destroyed by EMP Trap Performance ------------- Evolutions (0) 0 Regions Visited (1) 200 Robots Destroyed (7) 35 Value Destroyed (194) 194 Prototype IDs (0) 0 Alien Tech Used (0) 0 Bonus (0) 0 TOTAL SCORE: 429 Bonus ------- None Cogmind --------- Core Integrity 0/250 Matter 197/300 Energy 99/100 System Corruption 2% Temperature Cool (0) Movement Core (100) Ox1 Location -10/Materials Parts ------- > --- POWER (1) -------- (None) > --- PROPULSION (2) --- (None) > --- UTILITY (2) ------ Small Storage Unit Power Shielding > --- WEAPON (2) ------- (None) > --- INVENTORY (8) ---- Light Treads Aluminum Leg Aluminum Leg Heat Sink Structural Scanner Terrain Scanner Peak State ------------ > --- POWER ------------ Light Ion Engine > --- PROPULSION ------- Light Treads > --- UTILITY ---------- Small Storage Unit Terrain Scan Processor > --- WEAPON ----------- Light Assault Rifle Grenade Launcher > --- INVENTORY -------- Ion Engine Light Ion Engine Aluminum Leg Aluminum Leg Medium Laser [Rating: 7] Favorites ----------- Power Light Ion Engine Engine Light Ion Engine Propulsion Light Treads Treads Light Treads Flight Unit Flight Unit Utility Small Storage Unit Device Structural Scanner Storage Small Storage Unit Processor Terrain Scan Processor Protection Power Shielding Weapon Light Assault Rifle Energy Gun Medium Laser Ballistic Gun Light Assault Rifle Launcher Grenade Launcher Build | -11 -10 ------- Run | Yrd Mat Slots Evolved . | . . Power . | . . Propulsion . | . . Utility . | . . Weapon . | . . Parts Attached 12 | 5 7 Power 2 | 1 1 Engine 2 | 1 1 Core . | . . Reactor . | . . Propulsion 3 | 1 2 Treads 1 | 1 . Leg . | . . Wheel . | . . Hover . | . . Flight 2 | . 2 Utility 4 | 1 3 Device 1 | . 1 Storage 1 | 1 . Processor 1 | . 1 Hackware . | . . Protection 1 | . 1 Artifact . | . . Weapon 3 | 2 1 Energy Gun 1 | 1 . Energy Cannon . | . . Ballistic Gun 1 | 1 . Ballistic Cannon . | . . Launcher 1 | . 1 Special Weapon . | . . Impact Weapon . | . . Slashing Weapon . | . . Piercing Weapon . | . . Special Melee Weapon . | . . Unidentified Prototypes . | . . Parts Lost 7 | . 7 Power 2 | . 2 Propulsion 2 | . 2 Utility . | . . Weapon 3 | . 3 Highest Loss Streak 5 | . 5 To Critical Strikes 1 | . 1 Average Backups 5 | 2 5 Power 1 | . 1 Propulsion 2 | 1 2 Utility 1 | . 1 Weapon . | . . Tool/Special . | . . Unused Backups 6 | 1 5 Power 1 | . 1 Propulsion 3 | 1 2 Utility 2 | . 2 Weapon . | . . Tool/Special . | . . Average Slot Usage (%) 74 | . 74 Engine 13 | . 13 Treads 12 | . 12 Flight 1 | . 1 Device 2 | . 2 Storage 14 | . 14 Processor 3 | . 3 Protection 3 | . 3 Energy Gun 7 | . 7 Ballistic Gun 10 | . 10 Launcher 5 | . 5 Peak Build Rating 7 | 5 7 Average Rating 5 | 3 5 On Entrance 2 | . 5 Naked Turns . | . . Heaviest Build 12 | 11 12 Greatest Support 20 | 20 20 Greatest Overweight (x) 2 | 1 2 Average Overweight (x) . | . . Largest Inventory Capacity 8 | 8 8 Average Capacity 7 | 6 8 Most Carried 8 | 5 8 Average Carried 5 | 2 5 Final Capacity 8 | 8 8 Final Carried 6 | 3 6 Class Distribution -------------------- 100% | Mutant Dominant Class ---------------- Mutant | -10/Materials Resources | -11 -10 ----------- Run | Yrd Mat Matter Collected 299 | 204 95 Remotely . | . . Salvage Created 174 | . 174 Parts 10 | . 10 Haulers Intercepted . | . . Recyclers Shooed 2 | . 2 Parts Field Recycled . | . . Retrieved Matter . | . . Parts Self-Destructed . | . . Prevented . | . . Kills | -11 -10 ------- Run | Yrd Mat Combat Hostiles Destroyed 4 | . 4 Guns 3 | . 3 AOE 1 | . 1 Classes Destroyed 2 | . 2 Builder 3 | . 3 Grunt 4 | . 4 Best Kill Streak 4 | . 4 Combat Bots Only 2 | . 2 Max Kills in Single Turn 1 | . 1 Gunslinging . | . . Exploded 1 | . 1 Melee . | . . Uniques/NPCs Destroyed . | . . Combat | -11 -10 -------- Run | Yrd Mat Hostile Shots Fired 93 | . 93 Missed 24 | . 24 Hits 69 | . 69 Projectile 69 | . 69 Critical Strikes 1 | . 1 Damage Taken 853 | . 853 Core 253 | . 253 Absorbed by Shields . | . . Redirected to Shielding 24 | . 24 Core Remaining (%) 100 | 100 . Volleys Fired 38 | . 38 Largest 2 | . 2 Hottest 70 | . 70 Shots Fired 50 | . 50 Gun 44 | . 44 Cannon . | . . Launcher 6 | . 6 Special . | . . Kinetic 27 | . 27 Thermal 17 | . 17 Explosive 6 | . 6 Electromagnetic . | . . Robot Hit Streak 9 | . 9 Robot Miss Streak 2 | . 2 Penetration Max . | . . Secondary Targets . | . . Shots Hit Robots 31 | . 31 Core Hits 21 | . 21 Critical Kills . | . . Critical Parts Destroyed . | . . Critical Strikes 1 | . 1 Burn 1 | . 1 Melee Attacks . | . . Impact . | . . Slashing . | . . Piercing . | . . Sneak Attacks . | . . Combat Hostiles . | . . Follow-up Attacks . | . . Damage Inflicted 606 | . 606 Guns 300 | . 300 Cannons . | . . Explosions 298 | . 298 Melee . | . . Ramming 8 | . 8 Kinetic 136 | . 136 Thermal 164 | . 164 Explosive 298 | . 298 Electromagnetic . | . . Impact . | . . Slashing . | . . Piercing . | . . Highest Corruption 2 | . 2 Average Corruption 2 | . 2 Corruption Purged . | . . Corruption Blocked . | . . Overload Shots . | . . Overflow Damage 49 | . 49 Projectiles . | . . Explosions 49 | . 49 Melee . | . . Knockbacks . | . . Impact . | . . Kinetic . | . . Secondary . | . . Self-Inflicted Damage 156 | . 156 Shots 3 | . 3 Rammed 5 | . 5 Targets Rammed 5 | . 5 Kicked . | . . Crushed . | . . Highest Temperature 230 | . 230 Average Temperature 87 | . 87 Received Heat Transfer 141 | . 141 Siege Activations . | . . Martial Activations . | . . Shielding Activations . | . . Robots Disrupted . | . . Combat Hostiles . | . . Robots Corrupted . | . . Combat Hostiles . | . . Parts Fried . | . . Impact Corruptions . | . . Robots Melted . | . . Combat Hostiles . | . . Parts Melted 1 | . 1 Heat Transferred 555 | . 555 Parts Sabotaged . | . . Parts Stolen . | . . Parts Stripped . | . . Power Chain Reactions . | . . Alert | -11 -10 ------- Run | Yrd Mat Maximum Alert Level . | . . Low Security (%) 100 | 100 100 Level 1 . | . . Level 2 . | . . Level 3 . | . . Level 4 . | . . Level 5 . | . . High Security . | . . Max Security . | . . Peak Influence 95 | . 95 Initial . | . . Average 31 | . 35 Influence Increases 240 | . 240 Destroy 0b10 Robot/C 80 | . 80 Destroy 0b10 Robot/NC 15 | . 15 Destroy Leader 20 | . 20 Disable Machine 45 | . 45 Destroy Structure 65 | . 65 Lose Combat Pursuer 15 | . 15 Influence Decreases 240 | . 240 Time Decay 192 | . 192 Lost Part 48 | . 48 Squads Dispatched 1 | . 1 Investigation . | . . Extermination . | . . Reinforcement 1 | . 1 Assault . | . . Garrison . | . . Intercept . | . . Searches Triggered . | . . Construction Impeded . | . . Haulers Reinforced . | . . Active Scanning Responses . | . . Cargo Convoy Interrupts . | . . Stealth | -11 -10 --------- Run | Yrd Mat Distress Signals . | . . Communications Jammed . | . . Distress Signals . | . . Times Spotted 14 | . 14 Peak Tracking Total 3 | . 3 Tactical Retreats 1 | . 1 Traps | -11 -10 ------- Run | Yrd Mat Traps Triggered 1 | . 1 Indirectly . | . . Trap Hack Attempts . | . . Triggered . | . . Disarmed . | . . Reprogrammed . | . . Reused . | . . Traps Extracted . | . . Installed . | . . Triggered . | . . Machines | -11 -10 ---------- Run | Yrd Mat Machines Disabled 3 | . 3 Max in Single Turn 1 | . 1 Machines Repaired . | . . Machines Dismantled . | . . Machines Sabotaged . | . . Overloaded Fab Kills . | . . Hacking | -11 -10 --------- Run | Yrd Mat Machines Accessed . | . . Terminals . | . . Fabricators . | . . Repair Stations . | . . Recycling Units . | . . Scanalyzers . | . . Garrison Access . | . . Total Hacks . | . . Successful . | . . Failed . | . . Catastrophic . | . . Database Lockouts . | . . Manual . | . . Terminals . | . . Fabricators . | . . Repair Stations . | . . Recycling Units . | . . Scanalyzers . | . . Garrison Access . | . . Terminal Hacks . | . . Fabricator Hacks . | . . Repair Station Hacks . | . . Recycling Unit Hacks . | . . Scanalyzer . | . . Garrison Access Hacks . | . . Unauthorized Hacks . | . . Terminals . | . . Fabricators . | . . Repair Stations . | . . Recycling Units . | . . Scanalyzers . | . . Garrison Access . | . . Data Cores Recovered . | . . Used . | . . Hacking Detections . | . . Full Trace Events . | . . Feedback Events . | . . Feedback Blocked . | . . Robot Schematics Acquired . | . . Robots Built . | . . Authchips . | . . Time . | . . Total Robot Build Rating . | . . Part Schematics Acquired . | . . Parts Built . | . . Authchips . | . . Time . | . . Total Part Build Rating . | . . Parts Repaired . | . . Time . | . . Parts Recycled . | . . Recycled Matter . | . . Retrieved Matter . | . . Retrieved Components . | . . Parts Scanalyzed . | . . Part Schematics Acquired . | . . Parts Damaged . | . . Bothacking | -11 -10 ------------ Run | Yrd Mat Used RIF Installer . | . . Robots Hacked . | . . Non-combat . | . . Combat . | . . Robot Hacks Applied . | . . Relay Couplers Released . | . . Fabnet Peak Effective % . | . . Robots Rewired . | . . Allies Hacked . | . . Hacks Repelled . | . . Allies | -11 -10 -------- Run | Yrd Mat Total Allies . | . . Largest Group . | . . Highest-Rated Group . | . . Highest-Rated Ally . | . . Total Orders . | . . Ally Attacks . | . . Total Damage . | . . Kills . | . . Allies Corrupted . | . . Allies Melted . | . . Intel | -11 -10 ------- Run | Yrd Mat Active Infowar (turns) 96 | . 96 Structural 96 | . 96 Robot Analysis Total . | . . Derelict Logs Recovered . | . . Drone Launches . | . . Drone Recoveries . | . . Exploration | -11 -10 ------------- Run | Yrd Mat Turns Passed 663 | 84 579 Spaces Moved 335 | 55 280 Core 48 | 19 29 Treads 271 | 36 235 Legs . | . . Wheels . | . . Hover . | . . Flight 16 | . 16 Fastest Speed 50 | 50 100 Average Speed 148 | 131 152 Slowest Speed 200 | 160 200 Overloaded Moves . | . . Propulsion Burnouts . | . . Robots Hopped . | . . Potential Cave-ins . | . . Cave-ins Triggered . | . . Exploration Rate (%) 21 | 4 38 Regions Visited 1 Branch Regions . Pre-discovered Areas . | . . Known Exits Taken . | . . Unknown Exits Taken 1 | 1 . Scrap Searched . | . . Spaces Dug . | . . Terrain Destroyed 78 | . 78 Melee . | . . Projectile . | . . AOE 78 | . 78 Terrain Rammed . | . . Walls Destroyed . | . . Machines Disabled . | . . Actions | -11 -10 --------- Run | Yrd Mat Total 450 | 66 384 Wait 39 | . 39 Move 334 | 54 280 Hop . | . . Pick Up 15 | 6 9 Fast Attach 3 | 3 . Attach 6 | 2 4 Detach . | . . Swap 8 | . 8 Drop 2 | 1 1 Fire 38 | . 38 Melee . | . . Ram 5 | . 5 Kick . | . . Crush . | . . Escape Stasis . | . . Rewire . | . . Trap . | . . Miscellaneous . | . . Route ------- -11/Scrapyard -10/Materials History --------- Turn | Location | Event 15 | -11/Scrapyard | Discovered new exit (range 14) 85 | -11/Scrapyard | Entered Materials 313 | -10/Materials | Build established: Mutant 632 | -10/Materials | Core integrity fell below 50% 662 | -10/Materials | Core integrity fell below 20% 664 | -10/Materials | Destroyed by EMP Trap Last Messages --------------- 00568_ R-06 Scavenger collects Ion Engine. 00571_ Terminal unresponsive. Flying robots can pass through spaces occupied by others, even hostile robots. 00611_ Med. Laser destroyed. 00612_ Slammed into S-10 Pest. 00616_ Destabilizing: System corrupted (+2). 00619_ Slammed into O-16 Technician. 00619_ Destabilizing: Core damaged (-10). 00629_ Critical hit (Destroy). 00629_ Flight Unit destroyed. 00631_ Lgt. Ion Engine destroyed. 00633_ Flight Unit destroyed. 00654_ Lgt. Ion Engine destroyed. 00664_ Triggered EMP Trap. 00664_ A bubble of electromagnetic force engulfs the area. 00664_ EMP Trap short circuited. 00664_ A bubble of electromagnetic force engulfs the area. Map ----- +----------------------------------------------------+ | ????????????????????????????????? | | ????????????????????????????????? | | ???????????????????####?????????? | | ???????????????????# ?????????? | | ???????????????????# #????????? | | ???????????????????# +????????? | | ???????????????????# #????????? | | ???????????????????# #????????? | | ???????????????????# #????????? | | ???????????????????# ########## | | ???????????????????+ ## # | | ???????????????????# ## # | | ??????????????????## ## # | | ??????????????????# # # | | ????????????####### # # | | ????????? " + # | | ???????????######## # # | | #????????????????# # # | | ##????????????????### ### # | | ??????????????????# ### # | | #???????????????????# + ! # | | #??###########??????# ###/##### | | #??# """ #??????# ### #???? | | #### """ ######## #???? | | + """ # # #???? | | #### # # @ #???? | | ???#""" # + #???? | | ???#"T # #########???? | | ???#""" # #???????????? | | #### # ##??????????? | | ########+#####+#######??????????? | | # # ??????????? | | " """ # # ??????????? | | " """ + + ??????????? | | " """ ###+####### # ??????????? | | # ! ## # ??????????? | | ####### ##? #???????????? | | #### ! ##? #???????????? | | #### ##?? #???????????? | | ### ##???#???????????? | | #############???????????????? | | ######### ???????????????? | | #???????????????????????????? | | #???????????????????????????? | | ##???????????????????????????? | | #????????????????????????????? | | #????????????????????????????? | | ##????????????????????????????? | | ##?????????????????????????????? | | #??????????????????????????????? | +----------------------------------------------------+ Best States ------------- Heat Dissipation 25 Energy Generation 10 Energy Capacity 125 Matter Stores 254 Matter Capacity 300 Sight Range 16 Terrain Scan Density 85 Power Shielding 33 Evasion (%) 50 Recoil Reduction 1 Item Schematics ----------------- None Robot Schematics ------------------ None Fabricated ------------ Nothing Repaired ---------- Nothing Alien Tech Used ----------------- None Achievements -------------- None Challenges ------------ None Game ------ Seed MiningAngularBank Manual? 0 Play Time 00:19:59 Cumulative 0.2 hours Start 2025.09.14 @ 21:28:58 End 2025.09.15 @ 01:41:09 Sessions 1 Manual Loads 0 Difficulty Rogue Special Mode None Game No. 2 Rogue 2 Adventurer 0 Explorer 0 Win Type - Total 0 Types 0/0/0/0/0/0/0/0/0/0 Lore% 0 Gallery% 4 Achievement% 5 Wizard Run 0 Options --------- Layout 2 ASCII 1 Keyboard 1 Movement Arrows Keybinds 0 Fullscreen 1 Font 24/Smallcaps Map View 50x44 Zoom Use 0% Tactical HUD 1 Map Filters NONE Filters NONE Steam 1 RUN: b88de335-0569-45e1-af17-c108942b22aa